[Event "GrandPrix_30.05"]
[Site "Chess.com"]
[Date "2020.05.30"]
[Round "5"]
[White "hypert"]
[Black "Alex_Molchanov"]
[Result "1-0"]
[WhiteElo "2169"]
[BlackElo "2015"]
[TimeControl "600+2"]
[EndTime "10:28:59 PDT"]
[Termination "hypert won by resignation"]

1. e4 {[%clk 0:10:01.9]} 1... c6 {[%clk 0:09:58.3]} 2. Nc3 {[%clk 0:10:02]} 2...
d5 {[%clk 0:10:00.2]} 3. Nf3 {[%clk 0:10:03.3]} 3... Nf6 {[%clk 0:10:01]} 4. e5
{[%clk 0:10:03.5]} 4... Ne4 {[%clk 0:10:02]} 5. Ne2 {[%clk 0:10:04.6]} 5... Qb6
{[%clk 0:09:51.2]} 6. d4 {[%clk 0:10:05.3]} 6... e6 {[%clk 0:09:46.2]} 7. Nfg1
{[%clk 0:09:38.3]} 7... f6 {[%clk 0:09:45.6]} 8. f3 {[%clk 0:09:37.2]} 8... Ng5
{[%clk 0:09:45.7]} 9. exf6 {[%clk 0:09:34.4]} 9... gxf6 {[%clk 0:09:47.6]} 10.
f4 {[%clk 0:09:35.2]} 10... Ne4 {[%clk 0:09:44.8]} 11. Nf3 {[%clk 0:09:35.1]}
11... Bd7 {[%clk 0:09:36.1]} 12. Ng3 {[%clk 0:09:35.5]} 12... c5 {[%clk
0:09:27.5]} 13. Nxe4 {[%clk 0:09:20]} 13... dxe4 {[%clk 0:09:26.8]} 14. Nd2
{[%clk 0:09:12.2]} 14... Nc6 {[%clk 0:08:04.2]} 15. Nc4 {[%clk 0:08:37.5]} 15...
Qc7 {[%clk 0:07:57.9]} 16. Qh5+ {[%clk 0:08:28.9]} 16... Kd8 {[%clk 0:07:57.1]}
17. dxc5 {[%clk 0:08:27.8]} 17... Nd4 {[%clk 0:07:34.2]} 18. Qd1 {[%clk
0:08:25.9]} 18... Bxc5 {[%clk 0:07:28.3]} 19. Be3 {[%clk 0:08:17.9]} 19... Nf5
{[%clk 0:06:53.7]} 20. Bxc5 {[%clk 0:08:16.1]} 20... Qxc5 {[%clk 0:06:55.6]} 21.
Qd2 {[%clk 0:08:17.5]} 21... Kc7 {[%clk 0:06:31.1]} 22. O-O-O {[%clk 0:08:09.5]}
22... Rhd8 {[%clk 0:05:27.4]} 23. g4 {[%clk 0:08:07.3]} 23... Bb5 {[%clk
0:04:59.7]} 24. Qc3 {[%clk 0:07:09.4]} 24... Rxd1+ {[%clk 0:04:53.5]} 25. Kxd1
{[%clk 0:07:08.3]} 25... Bxc4 {[%clk 0:04:34.8]} 26. gxf5 {[%clk 0:07:01.3]}
26... Rd8+ {[%clk 0:04:29.5]} 27. Ke1 {[%clk 0:06:46]} 27... b5 {[%clk
0:04:27.3]} 28. b3 {[%clk 0:06:23.5]} 28... Qa3 {[%clk 0:01:36.1]} 29. Bxc4
{[%clk 0:05:48.2]} 29... Qc1+ {[%clk 0:01:31.1]} 30. Ke2 {[%clk 0:05:41.6]}
30... Qxh1 {[%clk 0:01:23.3]} 31. Qa5+ {[%clk 0:05:04.3]} 31... Kd7 {[%clk
0:01:19.5]} 32. Bxe6+ {[%clk 0:04:25.6]} 32... Ke8 {[%clk 0:01:10.3]} 33. Qxb5+
{[%clk 0:03:36]} 33... Kf8 {[%clk 0:01:09]} 34. Qc5+ {[%clk 0:03:30.1]} 34...
Ke8 {[%clk 0:01:08.8]} 35. Qc6+ {[%clk 0:03:14.8]} 35... Kf8 {[%clk 0:01:08]}
36. Qc5+ {[%clk 0:02:26.2]} 36... Ke8 {[%clk 0:01:07.5]} 37. Bd5 {[%clk
0:02:27.1]} 37... Qxh2+ {[%clk 0:00:36.3]} 38. Ke1 {[%clk 0:02:07.4]} 38... Qh1+
{[%clk 0:00:37.3]} 39. Ke2 {[%clk 0:02:06.4]} 39... Qh2+ {[%clk 0:00:19.1]} 40.
Ke1 {[%clk 0:02:03]} 40... Qg3+ {[%clk 0:00:13.8]} 41. Ke2 {[%clk 0:01:54.4]}
41... Qf3+ {[%clk 0:00:10]} 42. Ke1 {[%clk 0:01:55.1]} 42... Qg3+ {[%clk
0:00:11.2]} 43. Ke2 {[%clk 0:01:49.7]} 43... Qxf4 {[%clk 0:00:10.7]} 44. c4
{[%clk 0:01:08.6]} 44... Qh2+ {[%clk 0:00:04.8]} 45. Ke1 {[%clk 0:01:05.9]}
45... Qg3+ {[%clk 0:00:05.5]} 46. Kd1 {[%clk 0:01:04.1]} 46... Qe5 {[%clk
0:00:06.3]} 47. Kc2 {[%clk 0:00:59.4]} 47... e3 {[%clk 0:00:07.2]} 48. Qc6+
{[%clk 0:00:53.3]} 48... Rd7 {[%clk 0:00:07.7]} 49. Be6 {[%clk 0:00:50]} 49...
Kf8 {[%clk 0:00:02.1]} 50. Qxd7 {[%clk 0:00:45.6]} 50... Qe4+ {[%clk 0:00:03.5]}
51. Kb2 {[%clk 0:00:46.7]} 51... Qe5+ {[%clk 0:00:04.8]} 52. Kc2 {[%clk
0:00:41.3]} 52... Qe4+ {[%clk 0:00:04.7]} 53. Qd3 {[%clk 0:00:42.7]} 53... Qg2+
{[%clk 0:00:05.9]} 54. Kc3 {[%clk 0:00:42.6]} 54... e2 {[%clk 0:00:06.4]} 55.
Qd8+ {[%clk 0:00:42.2]} 55... Kg7 {[%clk 0:00:07.9]} 56. Qe7+ {[%clk 0:00:30.3]}
56... Kh6 {[%clk 0:00:09]} 57. Qxf6+ {[%clk 0:00:31.5]} 57... Kh5 {[%clk
0:00:10.4]} 58. Bf7+ {[%clk 0:00:31.5]} 58... Kg4 {[%clk 0:00:11.7]} 59. Qd4+
{[%clk 0:00:25.7]} 59... Kg3 {[%clk 0:00:10.9]} 60. Kd2 {[%clk 0:00:23.9]} 60...
Qf1 {[%clk 0:00:06.3]} 61. Qe3+ {[%clk 0:00:21.7]} 61... Kh4 {[%clk 0:00:07.8]}
62. Qxe2 {[%clk 0:00:22.3]} 62... Qxf5 {[%clk 0:00:08.9]} 63. Bd5 {[%clk
0:00:22.2]} 63... Qf4+ {[%clk 0:00:08.2]} 64. Qe3 {[%clk 0:00:22.4]} 64... Qh2+
{[%clk 0:00:09.2]} 65. Kc3 {[%clk 0:00:23.6]} 65... Qxa2 {[%clk 0:00:10.7]} 66.
Qf4+ {[%clk 0:00:22.4]} 66... Kh3 {[%clk 0:00:09.8]} 67. Be6+ {[%clk 0:00:22.7]}
67... Kg2 {[%clk 0:00:10.6]} 68. Qg4+ {[%clk 0:00:23.8]} 68... Kf2 {[%clk
0:00:11.3]} 69. Qh4+ {[%clk 0:00:24.1]} 69... Kg2 {[%clk 0:00:10.7]} 70. Bd5+
{[%clk 0:00:24.6]} 70... Kf1 {[%clk 0:00:10.9]} 71. Qh1+ {[%clk 0:00:25.4]}
71... Kf2 {[%clk 0:00:11.4]} 72. Qh2+ {[%clk 0:00:27]} 1-0

[Event "GrandPrix_30.05"]
[Site "Chess.com"]
[Date "2020.05.30"]
[Round "5"]
[White "Sunerorlater"]
[Black "A_N_D-R_E_I"]
[Result "1-0"]
[WhiteElo "2284"]
[BlackElo "2095"]
[TimeControl "600+2"]
[EndTime "10:29:00 PDT"]
[Termination "Sunerorlater won by resignation"]

1. d4 {[%clk 0:10:01.9]} 1... d5 {[%clk 0:10:00.6]} 2. c4 {[%clk 0:10:02.3]}
2... e6 {[%clk 0:09:52.2]} 3. Nc3 {[%clk 0:10:01.1]} 3... Nf6 {[%clk 0:09:53.1]}
4. cxd5 {[%clk 0:10:01.2]} 4... exd5 {[%clk 0:09:53.8]} 5. Bg5 {[%clk
0:10:01.1]} 5... c6 {[%clk 0:09:54.1]} 6. e3 {[%clk 0:10:00.7]} 6... Be7 {[%clk
0:09:54.4]} 7. Bd3 {[%clk 0:09:58.5]} 7... h6 {[%clk 0:09:55.2]} 8. Bf4 {[%clk
0:09:54.4]} 8... O-O {[%clk 0:09:50.9]} 9. h3 {[%clk 0:09:50]} 9... Re8 {[%clk
0:09:47.8]} 10. Nf3 {[%clk 0:09:41.1]} 10... Bd6 {[%clk 0:09:48.1]} 11. O-O
{[%clk 0:09:22.6]} 11... Bxf4 {[%clk 0:09:34.1]} 12. exf4 {[%clk 0:09:21.7]}
12... Na6 {[%clk 0:09:35.2]} 13. Ne5 {[%clk 0:08:51.2]} 13... Nc7 {[%clk
0:09:35.1]} 14. Qc2 {[%clk 0:08:35]} 14... Ne6 {[%clk 0:09:33.9]} 15. Ne2 {[%clk
0:08:35.7]} 15... Qb6 {[%clk 0:09:29.9]} 16. Rad1 {[%clk 0:08:34.4]} 16... c5
{[%clk 0:08:50.8]} 17. dxc5 {[%clk 0:08:21.5]} 17... Nxc5 {[%clk 0:08:51.4]} 18.
Nd4 {[%clk 0:08:05.2]} 18... Bd7 {[%clk 0:07:59.1]} 19. Rfe1 {[%clk 0:07:51.2]}
19... Rac8 {[%clk 0:07:57.9]} 20. Qb1 {[%clk 0:07:31.6]} 20... a6 {[%clk
0:07:36.8]} 21. Bc2 {[%clk 0:07:18.8]} 21... Ne6 {[%clk 0:07:08.9]} 22. Nxe6
{[%clk 0:06:47.8]} 22... Bxe6 {[%clk 0:07:01.2]} 23. Ba4 {[%clk 0:06:39.9]}
23... Red8 {[%clk 0:06:13.2]} 24. f5 {[%clk 0:06:06.8]} 24... Bd7 {[%clk
0:05:24.7]} 25. Nxd7 {[%clk 0:06:04.7]} 25... Nxd7 {[%clk 0:05:23]} 26. Rxd5
{[%clk 0:06:02.8]} 26... Nf6 {[%clk 0:05:04.2]} 27. Rxd8+ {[%clk 0:05:32.2]}
27... Rxd8 {[%clk 0:05:06.1]} 28. Re2 {[%clk 0:04:28]} 28... Rd4 {[%clk
0:03:22.6]} 29. Bb3 {[%clk 0:04:26.5]} 29... a5 {[%clk 0:03:16.6]} 30. Qc2
{[%clk 0:04:18.1]} 30... Qd8 {[%clk 0:02:35.9]} 31. a4 {[%clk 0:03:47.5]} 31...
Nd5 {[%clk 0:02:13.7]} 32. g3 {[%clk 0:03:36.5]} 32... Nb4 {[%clk 0:01:47.2]}
33. Qc5 {[%clk 0:03:22.7]} 33... Nc6 {[%clk 0:01:25.4]} 34. Kg2 {[%clk
0:02:20.6]} 34... Qd7 {[%clk 0:01:20.2]} 35. Bc4 {[%clk 0:01:41.2]} 35... Kh7
{[%clk 0:00:21.1]} 36. b3 {[%clk 0:01:39.9]} 36... Qd8 {[%clk 0:00:17.6]} 37.
Qb5 {[%clk 0:01:28.6]} 37... Qd7 {[%clk 0:00:15.1]} 38. f6 {[%clk 0:01:16.4]}
38... gxf6 {[%clk 0:00:14.1]} 39. Qc5 {[%clk 0:00:59.9]} 39... Kg7 {[%clk
0:00:11.6]} 40. Bb5 {[%clk 0:00:51.2]} 40... Qd5+ {[%clk 0:00:07]} 41. Qxd5
{[%clk 0:00:51.2]} 41... Rxd5 {[%clk 0:00:08.9]} 42. Re8 {[%clk 0:00:46.9]}
42... Nd4 {[%clk 0:00:07.4]} 43. Bc4 {[%clk 0:00:44.8]} 43... Rc5 {[%clk
0:00:08.8]} 44. Re7 {[%clk 0:00:38.5]} 44... Nc6 {[%clk 0:00:04.8]} 45. Rxf7+
{[%clk 0:00:37.3]} 45... Kg6 {[%clk 0:00:05.3]} 46. Rxb7 {[%clk 0:00:38.3]}
46... Ne5 {[%clk 0:00:06.3]} 47. Rb5 {[%clk 0:00:32.1]} 47... Rc7 {[%clk
0:00:05.8]} 48. Bd5 {[%clk 0:00:31.2]} 48... Rc3 {[%clk 0:00:06.6]} 49. Rxa5
{[%clk 0:00:28.3]} 49... Kg7 {[%clk 0:00:05.1]} 50. Ra7+ {[%clk 0:00:26.7]}
50... Kf8 {[%clk 0:00:05.7]} 51. Rb7 {[%clk 0:00:17.1]} 51... Rc2 {[%clk
0:00:06.9]} 52. Be4 {[%clk 0:00:17.4]} 52... Re2 {[%clk 0:00:07.3]} 53. Bf5
{[%clk 0:00:18.3]} 53... Rb2 {[%clk 0:00:06.9]} 54. a5 {[%clk 0:00:18.5]} 54...
Nc6 {[%clk 0:00:08]} 55. a6 {[%clk 0:00:17.2]} 55... Ra2 {[%clk 0:00:09.1]} 56.
Rb6 {[%clk 0:00:16.8]} 56... Nd4 {[%clk 0:00:08.8]} 57. Bd3 {[%clk 0:00:16.2]}
57... Ke7 {[%clk 0:00:08]} 58. Bc4 {[%clk 0:00:17]} 58... Nc2 {[%clk 0:00:05.9]}
59. Re6+ {[%clk 0:00:14.7]} 59... Kd7 {[%clk 0:00:05.4]} 60. Rxf6 {[%clk
0:00:15.2]} 60... Ne3+ {[%clk 0:00:04.6]} 61. Kf3 {[%clk 0:00:14.1]} 61... Nc2
{[%clk 0:00:05.7]} 62. a7 {[%clk 0:00:11.8]} 62... Nd4+ {[%clk 0:00:03.7]} 63.
Ke4 {[%clk 0:00:11.3]} 63... Rxa7 {[%clk 0:00:04]} 64. Rf7+ {[%clk 0:00:11.8]}
1-0

[Event "GrandPrix_30.05"]
[Site "Chess.com"]
[Date "2020.05.30"]
[Round "5"]
[White "wnstop"]
[Black "PeshkaTheGreat"]
[Result "1/2-1/2"]
[WhiteElo "2261"]
[BlackElo "2147"]
[TimeControl "600+2"]
[EndTime "10:29:02 PDT"]
[Termination "Game drawn by repetition"]

1. e4 {[%clk 0:10:01.9]} 1... c5 {[%clk 0:09:58.6]} 2. Nf3 {[%clk 0:09:58.4]}
2... d6 {[%clk 0:09:57.9]} 3. Bb5+ {[%clk 0:09:56.8]} 3... Nd7 {[%clk
0:09:54.6]} 4. a4 {[%clk 0:09:31.8]} 4... Nf6 {[%clk 0:09:49.4]} 5. Nc3 {[%clk
0:09:32.3]} 5... a6 {[%clk 0:09:47.9]} 6. Bc4 {[%clk 0:09:32.7]} 6... e6 {[%clk
0:09:48.3]} 7. O-O {[%clk 0:09:31.2]} 7... Be7 {[%clk 0:09:49]} 8. a5 {[%clk
0:09:28.7]} 8... O-O {[%clk 0:09:48.5]} 9. Re1 {[%clk 0:09:22.1]} 9... b5 {[%clk
0:09:26.8]} 10. axb6 {[%clk 0:09:21.3]} 10... Nxb6 {[%clk 0:09:28.1]} 11. Ba2
{[%clk 0:09:09.6]} 11... Bb7 {[%clk 0:09:27.1]} 12. d3 {[%clk 0:09:10.1]} 12...
d5 {[%clk 0:09:19]} 13. e5 {[%clk 0:08:43.2]} 13... Ne8 {[%clk 0:09:09.2]} 14.
d4 {[%clk 0:08:31.4]} 14... Nc7 {[%clk 0:08:58.2]} 15. Ne2 {[%clk 0:08:25.4]}
15... f6 {[%clk 0:08:28.1]} 16. c3 {[%clk 0:07:16.4]} 16... f5 {[%clk 0:08:19]}
17. g3 {[%clk 0:06:48.6]} 17... Qe8 {[%clk 0:08:09.7]} 18. h4 {[%clk 0:06:44.9]}
18... h6 {[%clk 0:07:58.1]} 19. Nf4 {[%clk 0:06:24.2]} 19... g5 {[%clk
0:07:48.4]} 20. hxg5 {[%clk 0:06:24.6]} 20... hxg5 {[%clk 0:07:49]} 21. dxc5
{[%clk 0:06:02.6]} 21... Nd7 {[%clk 0:07:31.7]} 22. Nd3 {[%clk 0:06:00.5]} 22...
Qh5 {[%clk 0:07:28.1]} 23. Nxg5 {[%clk 0:05:46.2]} 23... Qxd1 {[%clk 0:06:44.2]}
24. Rxd1 {[%clk 0:05:48.1]} 24... Nxc5 {[%clk 0:06:43.8]} 25. Nxc5 {[%clk
0:05:37.9]} 25... Bxc5 {[%clk 0:06:45.7]} 26. Nf3 {[%clk 0:05:33.8]} 26... Kf7
{[%clk 0:06:04.3]} 27. Nd4 {[%clk 0:05:28.8]} 27... Nb5 {[%clk 0:05:50.1]} 28.
Be3 {[%clk 0:05:06.2]} 28... Rac8 {[%clk 0:05:29]} 29. Kg2 {[%clk 0:04:56.2]}
29... Rg8 {[%clk 0:05:15.4]} 30. Kf3 {[%clk 0:04:49.8]} 30... Rg4 {[%clk
0:05:07.2]} 31. Bb3 {[%clk 0:04:04.9]} 31... Nxd4+ {[%clk 0:04:03.6]} 32. cxd4
{[%clk 0:03:49.3]} 32... Bb4 {[%clk 0:04:04.5]} 33. Rac1 {[%clk 0:03:39]} 33...
Rgg8 {[%clk 0:04:03.6]} 34. Rh1 {[%clk 0:03:37.8]} 34... Rxc1 {[%clk 0:03:54.8]}
35. Rxc1 {[%clk 0:03:36.3]} 35... Rc8 {[%clk 0:03:53.7]} 36. Rh1 {[%clk
0:03:21.9]} 36... Kg7 {[%clk 0:03:48.2]} 37. Bh6+ {[%clk 0:03:07.6]} 37... Kg6
{[%clk 0:03:43.9]} 38. Be3 {[%clk 0:03:08.5]} 38... Kg7 {[%clk 0:03:42]} 39. Ba4
{[%clk 0:02:55.8]} 39... Rc7 {[%clk 0:03:25.8]} 40. Bh6+ {[%clk 0:02:49.8]}
40... Kg8 {[%clk 0:03:12.6]} 41. Bg5 {[%clk 0:02:45.7]} 41... Bf8 {[%clk
0:02:43.6]} 42. Ke3 {[%clk 0:02:08.3]} 42... Bc8 {[%clk 0:01:54.9]} 43. Ra1
{[%clk 0:01:53.7]} 43... Rc4 {[%clk 0:01:34.9]} 44. Bd1 {[%clk 0:01:51.3]} 44...
Rb4 {[%clk 0:01:29.4]} 45. b3 {[%clk 0:01:23.9]} 45... Rb7 {[%clk 0:01:29.2]}
46. f3 {[%clk 0:01:00.8]} 46... Rc7 {[%clk 0:01:24.2]} 47. Kf2 {[%clk
0:00:39.7]} 47... Bb4 {[%clk 0:01:16.9]} 48. Rc1 {[%clk 0:00:37]} 48... Rxc1
{[%clk 0:01:05.8]} 49. Bxc1 {[%clk 0:00:38.9]} 49... a5 {[%clk 0:01:07.7]} 50.
Be2 {[%clk 0:00:37.9]} 50... Bd7 {[%clk 0:01:06.7]} 51. Bd1 {[%clk 0:00:33.8]}
51... Kf7 {[%clk 0:01:04.8]} 52. g4 {[%clk 0:00:32.4]} 52... Kg6 {[%clk
0:01:01]} 53. Bc2 {[%clk 0:00:28.9]} 53... Kf7 {[%clk 0:00:52.1]} 54. gxf5
{[%clk 0:00:29.2]} 54... exf5 {[%clk 0:00:54]} 55. Ke3 {[%clk 0:00:21.3]} 55...
Bc3 {[%clk 0:00:47.3]} 56. Bd2 {[%clk 0:00:17.9]} 56... Bxd2+ {[%clk 0:00:43.3]}
57. Kxd2 {[%clk 0:00:19.8]} 57... Kg6 {[%clk 0:00:35.2]} 58. Ke3 {[%clk
0:00:15.9]} 58... Kg5 {[%clk 0:00:36]} 59. f4+ {[%clk 0:00:13.1]} 59... Kg4
{[%clk 0:00:29.8]} 60. Bd1+ {[%clk 0:00:13.7]} 60... Kg3 {[%clk 0:00:30.4]} 61.
Bh5 {[%clk 0:00:10.6]} 61... Be6 {[%clk 0:00:31.7]} 62. Be8 {[%clk 0:00:09.3]}
62... Kg4 {[%clk 0:00:30.6]} 63. Bc6 {[%clk 0:00:09.1]} 63... Kg3 {[%clk
0:00:31.2]} 64. Be8 {[%clk 0:00:10.3]} 64... Kg4 {[%clk 0:00:32.4]} 65. Bb5
{[%clk 0:00:10.3]} 65... Kg3 {[%clk 0:00:33.4]} 66. Be2 {[%clk 0:00:08.1]} 66...
Bd7 {[%clk 0:00:32.8]} 67. Bd1 {[%clk 0:00:08.3]} 67... Bc8 {[%clk 0:00:31.4]}
68. Bf3 {[%clk 0:00:08.2]} 68... Be6 {[%clk 0:00:31.3]} 69. Be2 {[%clk
0:00:08.9]} 69... Bd7 {[%clk 0:00:29.8]} 70. Bh5 {[%clk 0:00:05.5]} 70... Be6
{[%clk 0:00:28.4]} 71. Be8 {[%clk 0:00:06.5]} 1/2-1/2

[Event "GrandPrix_30.05"]
[Site "Chess.com"]
[Date "2020.05.30"]
[Round "5"]
[White "Velis23"]
[Black "bsnsun"]
[Result "1/2-1/2"]
[WhiteElo "2107"]
[BlackElo "1935"]
[TimeControl "600+2"]
[EndTime "10:29:04 PDT"]
[Termination "Game drawn by repetition"]

1. d4 {[%clk 0:10:01.9]} 1... Nf6 {[%clk 0:09:59.8]} 2. Bf4 {[%clk 0:10:02.7]}
2... d5 {[%clk 0:10:00.2]} 3. e3 {[%clk 0:10:03.5]} 3... c5 {[%clk 0:10:01.3]}
4. c3 {[%clk 0:10:03.8]} 4... Nc6 {[%clk 0:10:01.1]} 5. Nd2 {[%clk 0:10:04.7]}
5... cxd4 {[%clk 0:09:59.2]} 6. exd4 {[%clk 0:10:04.4]} 6... Bg4 {[%clk
0:10:00.2]} 7. Qb3 {[%clk 0:10:04.6]} 7... Qc8 {[%clk 0:09:54.5]} 8. Bd3 {[%clk
0:10:03.6]} 8... e6 {[%clk 0:09:54.7]} 9. Ngf3 {[%clk 0:10:04.3]} 9... Be7
{[%clk 0:09:54.7]} 10. O-O {[%clk 0:10:05.1]} 10... O-O {[%clk 0:09:55.6]} 11.
Ne5 {[%clk 0:10:01.3]} 11... Nxe5 {[%clk 0:09:56]} 12. dxe5 {[%clk 0:10:01.4]}
12... Nd7 {[%clk 0:09:53.4]} 13. Qc2 {[%clk 0:10:00]} 13... h6 {[%clk
0:09:40.7]} 14. h3 {[%clk 0:09:58.9]} 14... Bh5 {[%clk 0:09:41.9]} 15. g4 {[%clk
0:09:50.9]} 15... Bg6 {[%clk 0:09:41.4]} 16. Bxg6 {[%clk 0:09:51.6]} 16... fxg6
{[%clk 0:09:40.1]} 17. Bg3 {[%clk 0:09:52.8]} 17... g5 {[%clk 0:09:36.4]} 18.
Rae1 {[%clk 0:09:10]} 18... Rf7 {[%clk 0:09:17.1]} 19. f4 {[%clk 0:09:07.8]}
19... gxf4 {[%clk 0:09:14.4]} 20. Bxf4 {[%clk 0:09:08.7]} 20... Qc5+ {[%clk
0:09:06.8]} 21. Be3 {[%clk 0:08:36.3]} 21... Rxf1+ {[%clk 0:09:04.1]} 22. Nxf1
{[%clk 0:08:36.2]} 22... Qc4 {[%clk 0:08:51.5]} 23. Bd4 {[%clk 0:08:28.1]} 23...
Qxa2 {[%clk 0:08:22.1]} 24. Ng3 {[%clk 0:08:24.4]} 24... Bh4 {[%clk 0:04:58.1]}
25. Kg2 {[%clk 0:08:22.1]} 25... Bxg3 {[%clk 0:04:56.8]} 26. Kxg3 {[%clk
0:08:22.9]} 26... Qc4 {[%clk 0:04:48.9]} 27. b3 {[%clk 0:08:04.6]} 27... Qc7
{[%clk 0:04:40.4]} 28. Qg6 {[%clk 0:07:41]} 28... Nf8 {[%clk 0:04:28.4]} 29. Qd3
{[%clk 0:07:41.3]} 29... Nd7 {[%clk 0:04:26.5]} 30. Qg6 {[%clk 0:07:36.4]} 30...
Nf8 {[%clk 0:04:00.8]} 31. Qd3 {[%clk 0:07:36.6]} 31... Re8 {[%clk 0:03:43.6]}
32. Rf1 {[%clk 0:07:30.5]} 32... Nd7 {[%clk 0:03:40.9]} 33. Qg6 {[%clk 0:07:21]}
33... Re7 {[%clk 0:03:40.5]} 34. Re1 {[%clk 0:06:43]} 34... b6 {[%clk
0:03:35.9]} 35. Kg2 {[%clk 0:06:33.3]} 35... Nf8 {[%clk 0:02:58]} 36. Qd3 {[%clk
0:06:28]} 36... Rf7 {[%clk 0:02:59.1]} 37. b4 {[%clk 0:06:13.3]} 37... a5 {[%clk
0:02:18.6]} 38. bxa5 {[%clk 0:05:38.1]} 38... bxa5 {[%clk 0:02:19.4]} 39. Qa6
{[%clk 0:05:37.8]} 39... Ng6 {[%clk 0:01:51.8]} 40. Kg3 {[%clk 0:05:03.5]} 40...
Qe7 {[%clk 0:01:50.1]} 41. Rf1 {[%clk 0:04:20.2]} 41... Qh4+ {[%clk 0:01:05]}
42. Kh2 {[%clk 0:04:20.7]} 42... Nf4 {[%clk 0:00:52.8]} 43. Rf3 {[%clk
0:04:09.5]} 43... Qe1 {[%clk 0:00:45.5]} 44. Qf1 {[%clk 0:03:32.8]} 44... Qe4
{[%clk 0:00:26.8]} 45. Be3 {[%clk 0:02:11.1]} 45... g5 {[%clk 0:00:27.1]} 46.
Bd4 {[%clk 0:01:36.4]} 46... a4 {[%clk 0:00:27.6]} 47. Rf2 {[%clk 0:01:10.1]}
47... Qd3 {[%clk 0:00:21.2]} 48. Qxd3 {[%clk 0:01:04.4]} 48... Nxd3 {[%clk
0:00:22.2]} 49. Ra2 {[%clk 0:01:05.2]} 49... Rb7 {[%clk 0:00:11.8]} 50. Rxa4
{[%clk 0:01:01.3]} 50... Kg7 {[%clk 0:00:08.7]} 51. Ra8 {[%clk 0:00:55.1]} 51...
Nf4 {[%clk 0:00:09.3]} 52. Ra7 {[%clk 0:00:21.6]} 52... Rxa7 {[%clk 0:00:10.4]}
53. Bxa7 {[%clk 0:00:22.3]} 53... Ne2 {[%clk 0:00:11.1]} 54. Bd4 {[%clk
0:00:22.1]} 54... Kf7 {[%clk 0:00:12.4]} 55. Kg2 {[%clk 0:00:21.8]} 55... Ke7
{[%clk 0:00:10.5]} 56. Kf3 {[%clk 0:00:22.8]} 56... Nf4 {[%clk 0:00:11.6]} 57.
h4 {[%clk 0:00:19]} 57... Ng6 {[%clk 0:00:11.5]} 58. h5 {[%clk 0:00:17.5]} 58...
Nf8 {[%clk 0:00:10.3]} 59. Bc5+ {[%clk 0:00:15.7]} 59... Kf7 {[%clk 0:00:11.2]}
60. Ke3 {[%clk 0:00:13.7]} 60... Nd7 {[%clk 0:00:12]} 61. Bd4 {[%clk 0:00:14.1]}
61... Ke7 {[%clk 0:00:13.3]} 62. Kd3 {[%clk 0:00:14.4]} 62... Nb8 {[%clk
0:00:12.8]} 63. Bc5+ {[%clk 0:00:11.9]} 63... Kf7 {[%clk 0:00:13]} 64. Bd6
{[%clk 0:00:12.8]} 64... Nc6 {[%clk 0:00:13.3]} 65. c4 {[%clk 0:00:14.1]} 65...
d4 {[%clk 0:00:13.5]} 66. c5 {[%clk 0:00:14.5]} 66... Ke8 {[%clk 0:00:12.1]} 67.
Bc7 {[%clk 0:00:13.7]} 67... Kd7 {[%clk 0:00:13]} 68. Bd6 {[%clk 0:00:15.1]}
68... Ke8 {[%clk 0:00:14.2]} 69. Kc4 {[%clk 0:00:15.8]} 69... Kd7 {[%clk
0:00:14.9]} 70. Kd3 {[%clk 0:00:09]} 70... Ke8 {[%clk 0:00:14.7]} 1/2-1/2